[Event "26th OIBM 2023"]
[Site "Gmund am Tegernsee"]
[Date "2023.11.05"]
[Round "9.15"]
[White "Raupp, Thomas"]
[Black "Gallego Alcaraz, Andres Felipe"]
[Result "1/2-1/2"]
[ECO "E92"]
[WhiteElo "2239"]
[BlackElo "2495"]
[Annotator "RC"]
[PlyCount "230"]
[EventDate "2023.10.04"]
[EventType "swiss"]
[EventCountry "GER"]
[SourceTitle "playchess.com"]
[Source "ChessBase"]
[SourceQuality "1"]
[TimeControl "40/5400+30:1800+30"]

1. d4 {[%emt 0:00:06]} Nf6 {[%emt 0:00:07]} 2. c4 {[%emt 0:00:02]} g6 {[%emt 0:00:08]} 3. Nc3 {[%emt 0:00:03]} Bg7 {[%emt 0:00:06]} 4. e4 {[%emt 0:00:04]} d6 {[%emt 0:00:06]} 5. Be2 {[%emt 0:00:11]} O-O {[%emt 0:00:09]} 6. Be3 {[%emt 0:00:02]} Na6 {[%emt 0:00:32]} 7. Nf3 {[%emt 0:01:33]} e5 {[%emt 0:00:37]} 8. d5 {[%emt 0:09:10]} Ng4 {[%emt 0:00:25]} 9. Bg5 {[%emt 0:00:14]} f6 {[%emt 0:00:08]} 10. Bh4 {[%emt 0:00:21]} Nh6 {[%emt 0:00:52]} 11. Nd2 {[%emt 0:02:36]} g5 {[%emt 0:00:37]} 12. Bg3 {[%emt 0:00:05]} f5 {[%emt 0:00:07]} 13. exf5 {[%emt 0:08:11]} Nxf5 {[%emt 0:00:31]} 14. Nde4 {[%emt 0:00:16]} b6 {[%emt 0:00:40]} 15. O-O {[%emt 0:06:01]} Nc5 {[%emt 0:02:52]} 16. b4 {[%emt 0:10:43]} Nxe4 {[%emt 0:00:16]} 17. Nxe4 {[%emt 0:00:07]} a5 {[%emt 0:04:32]} 18. a3 {[%emt 0:16:13]} axb4 {[%emt 0:06:52]} 19. axb4 {[%emt 0:00:55]} Rxa1 {[%emt 0:00:27]} 20. Qxa1 {[%emt 0:00:07]} g4 {[%emt 0:00:24]} 21. Qd1 {[%emt 0:18:23]} h5 {[%emt 0:01:56]} 22. h3 {[%emt 0:00:06]} Nxg3 {[%emt 1:19:06]} 23. fxg3 {[%emt 0:26:31]} Bh6 {[%emt 0:00:30]} 24. Rxf8+ {[%emt 0:00:30]} Qxf8 {[%emt 0:00:00]} 25. Qf1 Be3+ {[%emt 0:01:00]} 26. Kh2 {[%emt 0:00:00]} Qxf1 27. Bxf1 {[%emt 0:01:30]} Bf5 {[%emt 0:01:00]} 28. Bd3 {[%emt 0:00:30]} b5 {[%emt 0:00:00]} 29. cxb5 Kf8 {[%emt 0:01:00]} 30. Bb1 {[%emt 0:00:00]} Ke7 {[%emt 0:00:00]} 31. Bd3 {[%emt 0:00:00]} Bg6 {[%emt 0:00:00]} 32. Kh1 {[%emt 0:00:00]} Bd4 {[%emt 0:00:00]} 33. Kh2 {[%emt 0:00:00]} Be8 {[%emt 0:00:00]} 34. Kh1 {[%emt 0:00:21]} Bd7 {[%emt 0:00:00]} 35. Kh2 {[%emt 0:00:08]} Be3 {[%emt 0:00:00]} 36. Bc4 {[%emt 0:00:43]} Bc1 {[%emt 0:00:00]} 37. Be2 {[%emt 0:01:48]} Bf5 {[%emt 0:00:00]} 38. Bd3 {[%emt 0:00:07]} Be3 {[%emt 0:00:00]} 39. Bb1 {[%emt 0:00:14]} Kf8 {[%emt 0:05:00]} 40. Bd3 {[%emt 0:01:21]} Kg7 {[%emt 0:00:00]} 41. Bb1 {[%emt 0:06:49]} Bc1 {[%emt 0:00:00]} 42. Bd3 {[%emt 0:01:58]} Ba3 {[%emt 0:00:00]} 43. hxg4 {[%emt 0:05:12]} hxg4 {[%emt 0:00:00]} 44. Kg1 {[%emt 0:00:23]} Bxb4 {[%emt 0:00:00]} 45. Kf2 {[%emt 0:00:21]} Kh6 {[%emt 0:00:00]} 46. Ke2 {[%emt 0:00:10]} Ba5 {[%emt 0:00:00]} 47. Ke3 {[%emt 0:02:13]} Bb6+ {[%emt 0:00:00]} 48. Ke2 {[%emt 0:00:07]} Bg6 {[%emt 0:00:00]} 49. Bc2 {[%emt 0:01:39]} Bf7 {[%emt 0:00:00]} 50. Bb3 {[%emt 0:00:02]} Kg6 {[%emt 0:00:00]} 51. Bc2 {[%emt 0:05:04]} Kg7 {[%emt 0:00:00]} 52. Bb3 {[%emt 0:00:05]} Bd4 {[%emt 0:01:25]} 53. Ba2 {[%emt 0:00:30]} Be8 {[%emt 0:02:21]} 54. Bc4 {[%emt 0:00:02]} Bd7 {[%emt 0:00:43]} 55. Bd3 {[%emt 0:00:36]} Bb6 {[%emt 0:00:22]} 56. Bc4 {[%emt 0:00:15]} Ba5 {[%emt 0:00:09]} 57. Bd3 {[%emt 0:00:09]} Bb4 {[%emt 0:00:14]} 58. Bc4 {[%emt 0:00:08]} Ba3 {[%emt 0:00:07]} 59. Bd3 {[%emt 0:00:15]} Kf7 {[%emt 0:00:28]} 60. Bc4 {[%emt 0:01:10]} Ke7 {[%emt 0:00:07]} 61. Bd3 {[%emt 0:01:06]} Bc1 {[%emt 0:00:08]} 62. Kd1 {[%emt 0:00:51]} Bh6 {[%emt 0:00:07]} 63. Ke2 {[%emt 0:00:05]} Bg7 {[%emt 0:00:14]} 64. Kd2 {[%emt 0:00:38]} Bc8 {[%emt 0:01:49]} 65. Ke2 {[%emt 0:01:44]} Bf8 {[%emt 0:01:08]} 66. Bc2 {[%emt 0:00:34]} Kf7 {[%emt 0:00:21]} 67. Ng5+ {[%emt 0:00:31]} Kg7 {[%emt 0:01:29]} 68. Ne4 {[%emt 0:00:12]} Be7 {[%emt 0:00:08]} 69. Ke3 {[%emt 0:00:24]} Bd7 {[%emt 0:00:39]} 70. Bd3 {[%emt 0:00:07]} Kf7 {[%emt 0:00:46]} 71. Be2 {[%emt 0:00:17]} Bf5 {[%emt 0:02:14]} 72. Bd3 {[%emt 0:00:08]} Bc8 {[%emt 0:01:40]} 73. Bc2 {[%emt 0:00:41]} Kg7 {[%emt 0:01:09]} 74. Bd1 {[%emt 0:00:35]} Bd8 {[%emt 0:02:15]} 75. Bc2 {[%emt 0:03:58]} Bb7 {[%emt 0:02:00]} 76. Bb3 {[%emt 0:00:02]} Kg6 {[%emt 0:00:33]} 77. Bc2 {[%emt 0:00:20]} Kg7 {[%emt 0:02:48]} 78. Bb3 {[%emt 0:00:08]} Bc8 {[%emt 0:00:06]} 79. Bc2 {[%emt 0:00:10]} Bd7 {[%emt 0:00:09]} 80. Bd3 {[%emt 0:00:07]} Be7 {[%emt 0:00:07]} 81. Be2 {[%emt 0:00:08]} Kg6 {[%emt 0:00:29]} 82. Bd3 {[%emt 0:00:10]} Kh6 {[%emt 0:00:10]} 83. Ke2 {[%emt 0:00:38]} Be8 {[%emt 0:00:34]} 84. Ke3 {[%emt 0:01:38]} Bf7 {[%emt 0:01:02]} 85. Bc4 {[%emt 0:00:03]} Kg6 {[%emt 0:04:49]} 86. Bd3 {[%emt 0:06:32]} Kg7 {[%emt 0:01:20]} 87. Bc4 {[%emt 0:00:05]} Kf8 {[%emt 0:02:13]} 88. Nf2 {[%emt 0:00:46]} Bg5+ {[%emt 0:00:17]} 89. Ke2 {[%emt 0:00:15]} Ke7 {[%emt 0:00:42]} 90. Ne4 {[%emt 0:00:07]} Bh6 {[%emt 0:00:13]} 91. Bb3 {[%emt 0:00:19]} Kd7 {[%emt 0:01:44]} 92. Kd3 {[%emt 0:01:59]} Kc8 {[%emt 0:04:10]} 93. b6 {[%emt 0:01:47]} Bg6 {[%emt 0:00:27]} 94. bxc7 {[%emt 0:00:05]} Kxc7 {[%emt 0:00:08]} 95. Bc2 {[%emt 0:00:05]} Bf5 {[%emt 0:04:04]} 96. Kc4 {[%emt 0:00:39]} Bc8 {[%emt 0:00:31]} 97. Bd3 {[%emt 0:00:14]} Be3 {[%emt 0:00:11]} 98. Kb5 {[%emt 0:00:59]} Bd7+ {[%emt 0:01:04]} 99. Kb4 {[%emt 0:00:10]} Bd4 {[%emt 0:01:09]} 100. Bb5 {[%emt 0:01:05]} Bf5 {[%emt 0:00:33]} 101. Bd3 {[%emt 0:00:09]} Kb6 {[%emt 0:00:52]} 102. Kc4 {[%emt 0:00:37]} Bc8 {[%emt 0:00:50]} 103. Kb4 {[%emt 0:00:12]} Bb7 {[%emt 0:00:26]} 104. Bc4 {[%emt 0:00:29]} Be3 {[%emt 0:01:53]} 105. Ka4 {[%emt 0:00:33]} Bc5 {[%emt 0:00:15]} 106. Kb3 {[%emt 0:00:38]} Bc8 {[%emt 0:00:07]} 107. Be2 {[%emt 0:00:39]} Bf5 {[%emt 0:01:51]} 108. Bd3 {[%emt 0:00:08]} Bd7 {[%emt 0:01:05]} 109. Bc4 {[%emt 0:01:17]} Ka5 {[%emt 0:01:23]} 110. Nf6 {[%emt 0:00:20]} Bf5 {[%emt 0:01:56]} 111. Be2 {[%emt 0:00:27]} Bd4 {[%emt 0:01:32]} 112. Kc4 {[%emt 0:00:48]} Bf2 {[%emt 0:00:20]} 113. Bxg4 {[%emt 0:00:35]} Bb1 {[%emt 0:00:09]} 114. Bf3 {[%emt 0:00:49]} Bxg3 {[%emt 0:00:10]} 115. Ne4 {[%emt 0:01:00]} Bxe4 {[%emt 0:00:07]} 1/2-1/2

[Event "26th OIBM 2023"]
[Site "Gmund am Tegernsee"]
[Date "2023.11.05"]
[Round "9.16"]
[White "Heidel, Andre Nicolas"]
[Black "Zawadzka, Jolanta"]
[Result "0-1"]
[ECO "E90"]
[WhiteElo "2171"]
[BlackElo "2342"]
[Annotator "RC"]
[PlyCount "64"]
[EventDate "2023.10.04"]
[EventType "swiss"]
[EventCountry "GER"]
[SourceTitle "playchess.com"]
[Source "ChessBase"]
[SourceQuality "1"]
[TimeControl "40/5400+30:1800+30"]

1. d4 {[%emt 0:00:03]} Nf6 {[%emt 0:02:46]} 2. c4 {[%emt 0:00:48]} g6 {[%emt 0:00:05]} 3. Nc3 {[%emt 0:00:03]} Bg7 {[%emt 0:00:05]} 4. e4 {[%emt 0:00:04]} d6 {[%emt 0:00:04]} 5. Nf3 {[%emt 0:00:04]} O-O {[%emt 0:00:05]} 6. h3 {[%emt 0:00:23]} e5 {[%emt 0:00:38]} 7. d5 {[%emt 0:00:13]} a5 {[%emt 0:00:31]} 8. Be3 {[%emt 0:00:49]} Na6 {[%emt 0:00:36]} 9. g4 {[%emt 0:02:12]} Nc5 {[%emt 0:00:56]} 10. Qc2 {[%emt 0:04:23]} Bd7 {[%emt 0:07:39]} 11. Rg1 {[%emt 0:02:24]} c6 {[%emt 0:06:18]} 12. O-O-O {[%emt 0:05:40]} cxd5 {[%emt 0:02:10]} 13. Bxc5 {[%emt 0:00:31]} dxc5 {[%emt 0:00:28]} 14. exd5 {[%emt 0:09:59]} e4 {[%emt 0:02:55]} 15. Nd2 {[%emt 0:02:14]} a4 {[%emt 0:01:02]} 16. a3 {[%emt 0:01:46]} Qc7 {[%emt 0:04:14]} 17. Ndxe4 {[%emt 0:08:38]} Nxe4 {[%emt 0:00:41]} 18. Qxe4 {[%emt 0:01:21]} f5 {[%emt 0:04:07]} 19. d6 {[%emt 0:12:51]} Qb6 {[%emt 0:05:39]} 20. Qd5+ {[%emt 0:10:49]} Kh8 {[%emt 0:00:27]} 21. Nb5 {[%emt 0:01:30]} fxg4 {[%emt 0:04:48]} 22. hxg4 {[%emt 0:00:51]} Rxf2 {[%emt 0:00:47]} 23. Rd2 {[%emt 0:04:50]} Rxd2 {[%emt 0:03:26]} 24. Qxd2 {[%emt 0:03:45]} Bxb5 {[%emt 0:02:00]} 25. cxb5 {[%emt 0:00:07]} Rd8 {[%emt 0:02:42]} 26. Qc2 {[%emt 0:05:50]} Qxd6 {[%emt 0:01:10]} 27. Kb1 {[%emt 0:05:01]} Qd4 {[%emt 0:03:28]} 28. Rg2 {[%emt 0:03:31]} Qd1+ {[%emt 0:02:03]} 29. Qc1 {[%emt 0:00:24]} Qf3 {[%emt 0:02:25]} 30. Re2 {[%emt 0:03:48]} Bh6 {[%emt 0:02:20]} 31. Qe1 {[%emt 0:03:07]} Qd3+ {[%emt 0:00:30]} 32. Ka1 {[%emt 0:02:37]} Qd1+ {[%emt 0:00:25]} 0-1

[Event "26th OIBM 2023"]
[Site "Gmund am Tegernsee"]
[Date "2023.11.05"]
[Round "9.17"]
[White "Zude, Arno"]
[Black "Stricker, Florian"]
[Result "1-0"]
[ECO "B08"]
[WhiteElo "2333"]
[BlackElo "2238"]
[Annotator "RC"]
[PlyCount "59"]
[EventDate "2023.10.04"]
[EventType "swiss"]
[EventCountry "GER"]
[SourceTitle "playchess.com"]
[Source "ChessBase"]
[SourceQuality "1"]
[TimeControl "40/5400+30:1800+30"]

1. e4 {[%emt 0:00:03]} d6 {[%emt 0:00:06]} 2. d4 {[%emt 0:00:12]} Nf6 {[%emt 0:00:07]} 3. Nc3 {[%emt 0:00:06]} g6 {[%emt 0:00:07]} 4. Nf3 {[%emt 0:00:09]} Bg7 {[%emt 0:00:21]} 5. Be2 {[%emt 0:00:13]} O-O {[%emt 0:00:21]} 6. O-O {[%emt 0:00:11]} e5 {[%emt 0:10:05]} 7. dxe5 {[%emt 0:01:16]} dxe5 {[%emt 0:01:08]} 8. Nxe5 {[%emt 0:00:24]} Nxe4 {[%emt 0:18:32]} 9. Nxe4 {[%emt 0:00:39]} Bxe5 {[%emt 0:03:23]} 10. Bg5 {[%emt 0:01:27]} Qxd1 {[%emt 0:02:45]} 11. Raxd1 {[%emt 0:00:16]} Nc6 {[%emt 0:15:44]} 12. c3 {[%emt 0:05:00]} Be6 {[%emt 0:02:07]} 13. Nc5 {[%emt 0:02:07]} Bxa2 {[%emt 0:16:35]} 14. Bf3 {[%emt 0:01:14]} Bg7 {[%emt 0:07:55]} 15. Bf4 {[%emt 0:16:56]} Ne5 {[%emt 0:04:49]} 16. Bxb7 {[%emt 0:03:39]} Rab8 {[%emt 0:01:19]} 17. Rfe1 {[%emt 0:38:18]} Rfe8 {[%emt 0:01:53]} 18. h3 {[%emt 0:02:24]} f5 {[%emt 0:04:44]} 19. b4 {[%emt 0:10:00]} Bf7 {[%emt 0:01:08]} 20. Re3 {[%emt 0:02:41]} h6 {[%emt 0:04:32]} 21. Bd5 {[%emt 0:08:30]} Bxd5 {[%emt 0:02:24]} 22. Rxd5 {[%emt 0:00:10]} Nc4 {[%emt 0:00:09]} 23. Red3 {[%emt 0:00:50]} Ne5 {[%emt 0:00:32]} 24. Bxe5 {[%emt 0:01:23]} Bxe5 {[%emt 0:00:23]} 25. Nd7 {[%emt 0:00:19]} Bd6 {[%emt 0:00:39]} 26. Nf6+ {[%emt 0:00:28]} Kf7 {[%emt 0:00:13]} 27. Nxe8 {[%emt 0:00:07]} Rxe8 {[%emt 0:00:05]} 28. g3 {[%emt 0:00:10]} f4 {[%emt 0:00:42]} 29. gxf4 {[%emt 0:01:11]} Bxf4 {[%emt 0:00:06]} 30. Ra5 {[%emt 0:00:15]} 1-0

[Event "26th OIBM 2023"]
[Site "Gmund am Tegernsee"]
[Date "2023.11.05"]
[Round "9.18"]
[White "Nguyen, Alex Dac-Vuong"]
[Black "Ciolek, Andreas"]
[Result "0-1"]
[ECO "D38"]
[WhiteElo "2333"]
[BlackElo "2215"]
[Annotator "RC"]
[PlyCount "74"]
[EventDate "2023.10.04"]
[EventType "swiss"]
[EventCountry "GER"]
[SourceTitle "playchess.com"]
[Source "ChessBase"]
[SourceQuality "1"]
[TimeControl "40/5400+30:1800+30"]

1. c4 {[%emt 0:00:03]} Nf6 {[%emt 0:01:14]} 2. Nc3 {[%emt 0:00:07]} e6 {[%emt 0:00:52]} 3. d4 {[%emt 0:10:27]} d5 {[%emt 0:00:27]} 4. Nf3 {[%emt 0:00:06]} Bb4 {[%emt 0:00:22]} 5. Qa4+ {[%emt 0:00:18]} Nc6 {[%emt 0:00:09]} 6. e3 {[%emt 0:00:31]} O-O {[%emt 0:09:59]} 7. Qc2 {[%emt 0:01:00]} Re8 {[%emt 0:12:48]} 8. a3 {[%emt 0:16:43]} Bf8 {[%emt 0:03:31]} 9. b4 {[%emt 0:02:05]} e5 {[%emt 0:11:33]} 10. cxd5 {[%emt 0:02:15]} Nxd4 {[%emt 0:04:58]} 11. Qd1 {[%emt 0:05:37]} Nxd5 {[%emt 0:07:43]} 12. Nxd5 {[%emt 0:01:53]} Qxd5 {[%emt 0:00:17]} 13. exd4 {[%emt 0:08:02]} exd4+ {[%emt 0:00:42]} 14. Be2 {[%emt 0:02:12]} d3 {[%emt 0:06:04]} 15. Be3 {[%emt 0:00:24]} Bf5 {[%emt 0:00:35]} 16. Qd2 {[%emt 0:02:02]} a5 {[%emt 0:06:46]} 17. O-O {[%emt 0:07:20]} Red8 {[%emt 0:09:39]} 18. Bd1 {[%emt 0:04:09]} axb4 {[%emt 0:00:44]} 19. Qc1 {[%emt 0:08:38]} bxa3 {[%emt 0:07:43]} 20. Nd4 {[%emt 0:00:49]} d2 {[%emt 0:02:08]} 21. Qxc7 {[%emt 0:02:26]} Rac8 {[%emt 0:00:50]} 22. Qf4 {[%emt 0:01:18]} Bd3 {[%emt 0:01:57]} 23. Bb3 {[%emt 0:00:52]} Bc4 {[%emt 0:00:52]} 24. Bxc4 {[%emt 0:10:29]} Rxc4 {[%emt 0:00:09]} 25. Rfd1 {[%emt 0:00:05]} Rxd4 {[%emt 0:06:29]} 26. Bxd4 {[%emt 0:00:08]} Qxd4 {[%emt 0:00:04]} 27. Qxd4 {[%emt 0:00:10]} Rxd4 {[%emt 0:00:05]} 28. Rab1 {[%emt 0:00:06]} Bb4 {[%emt 0:01:51]} 29. f3 {[%emt 0:00:20]} g5 {[%emt 0:01:59]} 30. Kf2 {[%emt 0:00:07]} Bc3 {[%emt 0:01:05]} 31. Rb3 {[%emt 0:00:32]} Bb2 {[%emt 0:00:48]} 32. Rxb7 {[%emt 0:01:41]} Ra4 {[%emt 0:00:30]} 33. Ke2 {[%emt 0:00:59]} Bc1 {[%emt 0:01:03]} 34. Rb1 {[%emt 0:00:15]} a2 {[%emt 0:00:46]} 35. Ra1 {[%emt 0:00:04]} Bb2 {[%emt 0:00:18]} 36. Kxd2 {[%emt 0:01:23]} Rd4+ {[%emt 0:00:35]} 37. Kc2 {[%emt 0:00:04]} Rxd1 {[%emt 0:00:14]} 0-1

[Event "26th OIBM 2023"]
[Site "Gmund am Tegernsee"]
[Date "2023.11.05"]
[Round "9.19"]
[White "Ammon, Tobias"]
[Black "Forchert, Martin"]
[Result "1/2-1/2"]
[ECO "B04"]
[WhiteElo "2145"]
[BlackElo "2317"]
[Annotator "RC"]
[PlyCount "82"]
[EventDate "2023.10.04"]
[EventType "swiss"]
[EventCountry "GER"]
[SourceTitle "playchess.com"]
[Source "ChessBase"]
[SourceQuality "1"]
[TimeControl "40/5400+30:1800+30"]

1. e4 {[%emt 0:12:11]} Nf6 {[%emt 0:00:17]} 2. e5 {[%emt 0:00:25]} Nd5 {[%emt 0:00:06]} 3. d4 {[%emt 0:00:05]} d6 {[%emt 0:00:06]} 4. Nf3 {[%emt 0:00:06]} dxe5 {[%emt 0:00:07]} 5. Nxe5 {[%emt 0:00:08]} c6 {[%emt 0:00:06]} 6. Be2 {[%emt 0:00:31]} Bf5 {[%emt 0:00:09]} 7. O-O {[%emt 0:00:19]} Nd7 {[%emt 0:00:32]} 8. Nf3 {[%emt 0:02:19]} e6 {[%emt 0:00:19]} 9. c4 {[%emt 0:00:19]} N5f6 {[%emt 0:00:07]} 10. Nc3 {[%emt 0:00:13]} Bd6 {[%emt 0:00:20]} 11. Nh4 {[%emt 0:13:49]} Bg6 {[%emt 0:00:10]} 12. Re1 {[%emt 0:02:08]} O-O {[%emt 0:11:00]} 13. Nxg6 {[%emt 0:00:05]} hxg6 {[%emt 0:00:05]} 14. c5 {[%emt 0:07:25]} Bc7 {[%emt 0:02:08]} 15. b4 {[%emt 0:04:42]} Nd5 {[%emt 0:10:43]} 16. Nxd5 {[%emt 0:00:26]} exd5 {[%emt 0:00:05]} 17. Be3 {[%emt 0:12:49]} Re8 {[%emt 0:02:20]} 18. g3 {[%emt 0:05:22]} f5 {[%emt 0:02:23]} 19. Qd2 {[%emt 0:03:11]} Nf8 {[%emt 0:00:06]} 20. a4 {[%emt 0:08:37]} Ne6 {[%emt 0:00:32]} 21. f4 {[%emt 0:01:52]} Re7 {[%emt 0:09:06]} 22. Qd3 {[%emt 0:01:38]} Qd7 {[%emt 0:02:16]} 23. Bd2 {[%emt 0:03:31]} Rae8 {[%emt 0:01:32]} 24. Bf3 {[%emt 0:03:04]} Nf8 {[%emt 0:05:17]} 25. Reb1 {[%emt 0:01:40]} Qd8 {[%emt 0:00:39]} 26. Re1 {[%emt 0:05:42]} Nh7 {[%emt 0:00:55]} 27. Rxe7 {[%emt 0:02:34]} Rxe7 {[%emt 0:00:01]} 28. Re1 {[%emt 0:00:59]} Rxe1+ {[%emt 0:00:12]} 29. Bxe1 {[%emt 0:00:01]} Nf6 {[%emt 0:00:11]} 30. Bd2 {[%emt 0:02:20]} Ne4 {[%emt 0:00:17]} 31. Bc1 {[%emt 0:01:24]} Qd7 {[%emt 0:01:23]} 32. b5 {[%emt 0:01:17]} Bd8 {[%emt 0:00:10]} 33. Kg2 {[%emt 0:01:38]} g5 {[%emt 0:02:46]} 34. bxc6 {[%emt 0:00:35]} bxc6 {[%emt 0:00:04]} 35. Qa6 {[%emt 0:00:39]} Bf6 {[%emt 0:01:31]} 36. Qd3 {[%emt 0:02:02]} g4 {[%emt 0:03:33]} 37. Bd1 {[%emt 0:00:11]} Qb7 {[%emt 0:00:04]} 38. Ba3 {[%emt 0:00:57]} Qc7 {[%emt 0:02:15]} 39. Bb4 {[%emt 0:00:25]} Qb7 {[%emt 0:03:13]} 40. Ba3 {[%emt 0:00:13]} Qc7 {[%emt 0:12:02]} 41. Bb4 {[%emt 0:31:40]} Qb7 {[%emt 0:31:22]} 1/2-1/2

[Event "26th OIBM 2023"]
[Site "Gmund am Tegernsee"]
[Date "2023.11.05"]
[Round "9.20"]
[White "Baerwinkel, Tobias"]
[Black "Imnadze, Nato"]
[Result "1-0"]
[ECO "E05"]
[WhiteElo "2315"]
[BlackElo "2207"]
[Annotator "RC"]
[PlyCount "129"]
[EventDate "2023.10.04"]
[EventType "swiss"]
[EventCountry "GER"]
[SourceTitle "playchess.com"]
[Source "ChessBase"]
[SourceQuality "1"]
[TimeControl "40/5400+30:1800+30"]

1. d4 {[%emt 0:00:03]} Nf6 {[%emt 0:00:16]} 2. c4 {[%emt 0:00:09]} e6 {[%emt 0:00:04]} 3. g3 {[%emt 0:00:10]} d5 {[%emt 0:02:51]} 4. Bg2 {[%emt 0:00:14]} Be7 {[%emt 0:00:05]} 5. Nf3 {[%emt 0:00:46]} O-O {[%emt 0:00:06]} 6. O-O {[%emt 0:00:16]} dxc4 {[%emt 0:00:16]} 7. Qc2 {[%emt 0:00:13]} b5 {[%emt 0:04:00]} 8. a4 {[%emt 0:01:20]} b4 {[%emt 0:00:04]} 9. Nfd2 {[%emt 0:00:54]} c6 {[%emt 0:01:09]} 10. Nxc4 {[%emt 0:01:35]} Qxd4 {[%emt 0:00:48]} 11. Rd1 {[%emt 0:00:56]} Qc5 {[%emt 0:00:42]} 12. Be3 {[%emt 0:00:26]} Qh5 {[%emt 0:01:13]} 13. Nbd2 {[%emt 0:00:31]} Ng4 {[%emt 0:02:16]} 14. Nf3 {[%emt 0:00:11]} Nxe3 {[%emt 0:00:44]} 15. Nxe3 {[%emt 0:00:05]} Bf6 {[%emt 0:07:22]} 16. Nd4 {[%emt 0:06:26]} Ba6 {[%emt 0:11:11]} 17. Bf3 {[%emt 0:12:43]} Qa5 {[%emt 0:07:32]} 18. Ng4 {[%emt 0:11:28]} Qg5 {[%emt 0:27:46]} 19. h4 {[%emt 0:15:02]} Qg6 {[%emt 0:04:25]} 20. Qxg6 {[%emt 0:01:10]} hxg6 {[%emt 0:00:31]} 21. Nxf6+ {[%emt 0:00:09]} gxf6 {[%emt 0:00:04]} 22. Nb3 {[%emt 0:00:20]} e5 {[%emt 0:05:46]} 23. Na5 {[%emt 0:02:53]} Bc8 {[%emt 0:06:42]} 24. Rd6 {[%emt 0:05:34]} Bf5 {[%emt 0:01:42]} 25. Rc1 {[%emt 0:04:05]} e4 {[%emt 0:02:16]} 26. Bg2 {[%emt 0:00:05]} Kg7 {[%emt 0:03:12]} 27. Rc4 {[%emt 0:08:46]} Re8 {[%emt 0:03:08]} 28. g4 {[%emt 0:02:35]} Bxg4 {[%emt 0:00:37]} 29. Rxe4 {[%emt 0:02:20]} Rxe4 {[%emt 0:06:41]} 30. Bxe4 {[%emt 0:00:04]} Nd7 {[%emt 0:00:48]} 31. Bxc6 {[%emt 0:03:06]} Rh8 {[%emt 0:00:42]} 32. Bxd7 {[%emt 0:00:11]} Rd8 {[%emt 0:00:43]} 33. Rd4 {[%emt 0:03:47]} Be6 {[%emt 0:00:01]} 34. Rxb4 {[%emt 0:04:28]} Rxd7 {[%emt 0:00:05]} 35. f3 {[%emt 0:00:28]} Rc7 {[%emt 0:01:11]} 36. Kf2 {[%emt 0:00:18]} Bd5 {[%emt 0:00:55]} 37. e4 {[%emt 0:00:31]} Be6 {[%emt 0:00:28]} 38. Rb7 {[%emt 0:01:30]} Rc2+ {[%emt 0:00:19]} 39. Ke3 {[%emt 0:00:20]} a6 {[%emt 0:00:14]} 40. Rb6 {[%emt 0:00:39]} Bd7 {[%emt 0:00:57]} 41. b3 {[%emt 0:34:21]} Be6 {[%emt 0:02:17]} 42. Rxa6 {[%emt 0:00:00]} Bxb3 {[%emt 0:00:42]} 43. Nxb3 {[%emt 0:00:00]} Rc3+ {[%emt 0:00:15]} 44. Kf2 {[%emt 0:00:00]} Rxb3 {[%emt 0:00:04]} 45. a5 {[%emt 0:00:00]} Ra3 {[%emt 0:00:50]} 46. Ra8 {[%emt 0:00:00]} Ra2+ {[%emt 0:04:38]} 47. Kg3 {[%emt 0:00:00]} Ra4 {[%emt 0:00:04]} 48. a6 {[%emt 0:00:00]} Kh7 {[%emt 0:00:34]} 49. Kf2 {[%emt 0:00:00]} Ra3 {[%emt 0:06:08]} 50. Ke2 {[%emt 0:00:00]} Kg7 {[%emt 0:00:22]} 51. f4 {[%emt 0:00:00]} Ra4 {[%emt 0:03:21]} 52. Ke3 {[%emt 0:00:00]} Ra5 {[%emt 0:09:52]} 53. Kd4 {[%emt 0:06:12]} Ra4+ {[%emt 0:03:30]} 54. Kc5 {[%emt 0:02:50]} Rxe4 {[%emt 0:00:42]} 55. Rc8 {[%emt 0:02:34]} Ra4 {[%emt 0:01:58]} 56. Kb5 {[%emt 0:01:38]} Ra1 {[%emt 0:00:04]} 57. Rc4 {[%emt 0:00:07]} g5 {[%emt 0:01:01]} 58. Ra4 {[%emt 0:00:51]} Rb1+ {[%emt 0:00:04]} 59. Kc6 {[%emt 0:00:25]} Rb8 {[%emt 0:02:00]} 60. hxg5 {[%emt 0:00:08]} fxg5 {[%emt 0:00:12]} 61. fxg5 {[%emt 0:00:06]} Kg6 {[%emt 0:00:45]} 62. a7 {[%emt 0:00:23]} Ra8 {[%emt 0:00:30]} 63. Kb7 {[%emt 0:00:21]} Rxa7+ {[%emt 0:00:28]} 64. Rxa7 {[%emt 0:00:04]} Kxg5 {[%emt 0:00:05]} 65. Kc6 {[%emt 0:00:03]} 1-0

[Event "26th OIBM 2023"]
[Site "Gmund am Tegernsee"]
[Date "2023.11.05"]
[Round "9.21"]
[White "Mai, Philipp"]
[Black "Khrapko, Marharyta"]
[Result "0-1"]
[ECO "B32"]
[WhiteElo "2313"]
[BlackElo "2170"]
[Annotator "RC"]
[PlyCount "78"]
[EventDate "2023.10.04"]
[EventType "swiss"]
[EventCountry "GER"]
[SourceTitle "playchess.com"]
[Source "ChessBase"]
[SourceQuality "1"]
[TimeControl "40/5400+30:1800+30"]

1. e4 {[%emt 0:00:06]} c5 {[%emt 0:00:01]} 2. Nf3 {[%emt 0:00:09]} Nc6 {[%emt 0:00:01]} 3. d4 {[%emt 0:00:10]} cxd4 {[%emt 0:00:02]} 4. Nxd4 {[%emt 0:00:08]} e5 {[%emt 0:00:02]} 5. Nb5 {[%emt 0:00:12]} d6 {[%emt 0:00:01]} 6. N1c3 {[%emt 0:00:57]} a6 {[%emt 0:00:05]} 7. Na3 {[%emt 0:00:14]} Be7 {[%emt 0:00:03]} 8. Nc4 {[%emt 0:00:14]} b5 {[%emt 0:00:03]} 9. Ne3 {[%emt 0:00:06]} Nf6 {[%emt 0:00:02]} 10. Bd3 {[%emt 0:00:46]} O-O {[%emt 0:00:04]} 11. O-O {[%emt 0:00:46]} Nb4 {[%emt 0:00:04]} 12. Be2 {[%emt 0:00:55]} Be6 {[%emt 0:00:03]} 13. a3 {[%emt 0:00:23]} Nc6 {[%emt 0:00:02]} 14. Bd3 {[%emt 0:03:07]} Nd7 {[%emt 0:09:53]} 15. Ncd5 {[%emt 0:17:28]} Nc5 {[%emt 0:02:31]} 16. b4 {[%emt 0:00:40]} Nxd3 {[%emt 0:07:00]} 17. Qxd3 {[%emt 0:00:12]} Bg5 {[%emt 0:06:13]} 18. Bb2 {[%emt 0:02:52]} Qb8 {[%emt 0:09:11]} 19. Rfd1 {[%emt 0:14:12]} Rd8 {[%emt 0:04:03]} 20. Bc1 {[%emt 0:24:33]} Qb7 {[%emt 0:19:10]} 21. Bd2 {[%emt 0:04:51]} Rac8 {[%emt 0:06:10]} 22. Rac1 {[%emt 0:01:23]} Nd4 {[%emt 0:01:26]} 23. Nf1 {[%emt 0:16:00]} Bxd2 {[%emt 0:03:13]} 24. Nxd2 {[%emt 0:00:03]} Bxd5 {[%emt 0:01:05]} 25. exd5 {[%emt 0:00:48]} Rc3 {[%emt 0:00:06]} 26. Qf1 {[%emt 0:01:34]} Rxc2 {[%emt 0:04:02]} 27. Rxc2 {[%emt 0:01:04]} Nxc2 {[%emt 0:01:57]} 28. Nb3 {[%emt 0:00:26]} Nxa3 {[%emt 0:01:05]} 29. Na5 {[%emt 0:00:08]} Qa8 {[%emt 0:13:08]} 30. Qd3 {[%emt 0:06:21]} Nc4 {[%emt 0:00:00]} 31. Nxc4 {[%emt 0:00:07]} bxc4 {[%emt 0:00:02]} 32. Qxc4 {[%emt 0:00:05]} Rc8 {[%emt 0:00:01]} 33. Qd3 {[%emt 0:00:20]} Qb7 {[%emt 0:03:32]} 34. h3 {[%emt 0:00:29]} g6 {[%emt 0:00:46]} 35. Ra1 {[%emt 0:00:17]} Qxb4 {[%emt 0:00:24]} 36. Rxa6 {[%emt 0:01:24]} Qe1+ {[%emt 0:00:50]} 37. Kh2 {[%emt 0:01:38]} Qxf2 {[%emt 0:00:03]} 38. Rxd6 {[%emt 0:00:11]} Rc1 {[%emt 0:00:44]} 39. Rc6 {[%emt 0:02:12]} Qf4+ {[%emt 0:00:45]} 0-1